[Event "4th Batumi Cup 2018"]
[Site "Batumi"]
[Date "2018.07.03"]
[Round "1"]
[White "Khomeriki, Nino"]
[Black "Tutisani, Noe"]
[Result "1/2-1/2"]
[ECO "E91"]
[WhiteElo "2257"]
[BlackElo "2469"]
[Annotator "ChessBase"]
[PlyCount "60"]
[EventDate "2018.07.03"]
[EventType "swiss"]
[EventCountry "GEO"]
[SourceTitle "playchess.com"]
[Source "ChessBase"]
[SourceQuality "1"]
[TimeControl "40/5400+30:1800+30"]

1. d4 {[%emt 0:00:00]} Nf6 {[%emt 0:00:00]} 2. Nf3 {[%emt 0:00:23]} b6 {[%emt 0:00:00]} 3. e3 {[%emt 0:01:25]} Bb7 {[%emt 0:00:00]} 4. Bd3 {[%emt 0:00:04]} g6 {[%emt 0:00:03]} 5. c4 {[%emt 0:01:41]} Bg7 {[%emt 0:00:05]} 6. Nc3 {[%emt 0:00:36]} O-O {[%emt 0:00:50]} 7. e4 {[%emt 0:02:18]} d6 {[%emt 0:00:04]} 8. O-O {[%emt 0:00:06]} Nbd7 {[%emt 0:00:10]} 9. h3 {[%emt 0:04:26]} e5 {[%emt 0:00:32]} 10. d5 {[%emt 0:00:13]} Nc5 {[%emt 0:00:06]} 11. Bc2 {[%emt 0:07:46]} a5 {[%emt 0:00:41]} 12. Be3 {[%emt 0:01:05]} Nh5 {[%emt 0:03:06]} 13. a3 {[%emt 0:03:54]} Nf4 {[%emt 0:00:59]} 14. b4 {[%emt 0:05:34]} axb4 {[%emt 0:03:20]} 15. axb4 {[%emt 0:00:06]} Rxa1 {[%emt 0:00:36]} 16. Qxa1 {[%emt 0:00:10]} Na6 {[%emt 0:00:20]} 17. Qa3 {[%emt 0:11:54]} Bc8 {[%emt 0:07:59]} 18. Kh2 {[%emt 0:23:06]} g5 {[%emt 0:02:30]} 19. Ng1 {[%emt 0:03:06]} g4 {[%emt 0:02:59]} 20. Nce2 {[%emt 0:07:27]} gxh3 {[%emt 0:03:06]} 21. Nxf4 {[%emt 0:01:58]} exf4 {[%emt 0:00:15]} 22. Bxf4 {[%emt 0:00:04]} hxg2 {[%emt 0:00:21]} 23. Kxg2 {[%emt 0:00:02]} f5 {[%emt 0:01:08]} 24. exf5 {[%emt 0:04:00]} Qh4 {[%emt 0:00:37]} 25. Qg3 {[%emt 0:04:03]} Qxg3+ {[%emt 0:00:15]} 26. fxg3 {[%emt 0:00:06]} Nxb4 {[%emt 0:00:23]} 27. Bb1 {[%emt 0:00:05]} Bxf5 {[%emt 0:02:02]} 28. Bxd6 {[%emt 0:00:40]} Bxb1 {[%emt 0:03:53]} 29. Rxb1 {[%emt 0:00:18]} cxd6 {[%emt 0:00:07]} 30. Rxb4 {[%emt 0:00:06]} Bd4 {[%emt 0:00:43]} 1/2-1/2

[Event "4th Batumi Cup 2018"]
[Site "Batumi"]
[Date "2018.07.03"]
[Round "1"]
[White "Tereladze, Sopiko"]
[Black "Bashirov, Teymur"]
[Result "1/2-1/2"]
[ECO "D35"]
[WhiteElo "2169"]
[BlackElo "2379"]
[Annotator "NA"]
[PlyCount "39"]
[EventDate "2018.07.03"]
[EventType "swiss"]
[EventCountry "GEO"]
[SourceTitle "playchess.com"]
[Source "ChessBase"]
[SourceQuality "1"]
[TimeControl "40/5400+30:1800+30"]

1. d4 {[%emt 0:00:24]} d5 {[%emt 0:00:00]} 2. c4 {[%emt 0:01:06]} e6 {[%emt 0:00:04]} 3. cxd5 {[%emt 0:00:21]} exd5 {[%emt 0:00:11]} 4. Nc3 {[%emt 0:00:43]} Nf6 {[%emt 0:00:15]} 5. Nf3 {[%emt 0:01:08]} Be7 {[%emt 0:02:13]} 6. Qc2 {[%emt 0:03:24]} c6 {[%emt 0:06:18]} 7. Bf4 {[%emt 0:03:20]} Nbd7 {[%emt 0:03:11]} 8. e3 {[%emt 0:01:51]} O-O {[%emt 0:13:17]} 9. Bd3 {[%emt 0:02:59]} Re8 {[%emt 0:03:26]} 10. g4 {[%emt 0:05:18]} Qa5 {[%emt 0:11:32]} 11. g5 {[%emt 0:08:48]} Ne4 {[%emt 0:07:01]} 12. Bxe4 {[%emt 0:03:42]} dxe4 {[%emt 0:00:02]} 13. Qxe4 {[%emt 0:00:27]} Nb6 {[%emt 0:01:33]} 14. O-O {[%emt 0:09:12]} Bh3 {[%emt 0:04:15]} 15. Ne5 {[%emt 0:01:50]} Bxf1 {[%emt 0:03:07]} 16. Rxf1 {[%emt 0:00:20]} Nd5 {[%emt 0:07:57]} 17. Qf5 {[%emt 0:02:26]} Rf8 {[%emt 0:08:49]} 18. Nd7 {[%emt 0:04:26]} Rfd8 {[%emt 0:06:52]} 19. Ne5 {[%emt 0:02:09]} Rf8 {[%emt 0:01:11]} 20. Nd7 {[%emt 0:00:03]} 1/2-1/2

[Event "4th Batumi Cup 2018"]
[Site "Batumi"]
[Date "2018.07.03"]
[Round "1"]
[White "Eynullayev, Altay"]
[Black "Mgeladze, Tamaz"]
[Result "0-1"]
[ECO "E73"]
[WhiteElo "2134"]
[BlackElo "2374"]
[Annotator "NA"]
[PlyCount "112"]
[EventDate "2018.07.03"]
[EventType "swiss"]
[EventCountry "GEO"]
[SourceTitle "playchess.com"]
[Source "ChessBase"]
[SourceQuality "1"]
[TimeControl "40/5400+30:1800+30"]

1. d4 {[%emt 0:00:00]} Nf6 {[%emt 0:00:00]} 2. c4 {[%emt 0:00:00]} g6 {[%emt 0:00:14]} 3. Nc3 {[%emt 0:00:00]} Bg7 {[%emt 0:00:04]} 4. e4 {[%emt 0:00:00]} d6 {[%emt 0:00:05]} 5. Be2 {[%emt 0:00:00]} O-O {[%emt 0:00:16]} 6. Be3 {[%emt 0:00:00]} e5 {[%emt 0:02:23]} 7. d5 {[%emt 0:00:13]} a5 {[%emt 0:01:42]} 8. g4 {[%emt 0:00:05]} Na6 {[%emt 0:02:56]} 9. h4 {[%emt 0:00:05]} Nc5 {[%emt 0:01:39]} 10. f3 {[%emt 0:00:04]} c6 {[%emt 0:10:11]} 11. h5 {[%emt 0:01:23]} cxd5 {[%emt 0:01:12]} 12. cxd5 {[%emt 0:01:43]} a4 {[%emt 0:05:03]} 13. Qd2 {[%emt 0:16:53]} Qa5 {[%emt 0:00:33]} 14. Nh3 {[%emt 0:09:06]} Bd7 {[%emt 0:01:51]} 15. Nf2 {[%emt 0:00:55]} Rfc8 {[%emt 1:09:21]} 16. Rc1 {[%emt 0:12:58]} Rc7 {[%emt 0:00:00]} 17. hxg6 {[%emt 0:08:07]} fxg6 {[%emt 0:00:00]} 18. O-O {[%emt 0:01:13]} b5 {[%emt 0:00:00]} 19. Rc2 {[%emt 0:07:10]} Bf8 {[%emt 0:00:00]} 20. Re1 {[%emt 0:04:52]} Be7 {[%emt 0:00:00]} 21. Kg2 {[%emt 0:04:20]} Bd8 {[%emt 0:00:00]} 22. Rh1 {[%emt 0:05:07]} b4 {[%emt 0:00:00]} 23. Nb1 {[%emt 0:01:49]} Rcc8 {[%emt 0:00:00]} 24. Rhc1 {[%emt 0:02:47]} Bb6 {[%emt 0:00:00]} 25. Nd3 {[%emt 0:07:19]} b3 {[%emt 0:00:00]} 26. Qxa5 {[%emt 0:01:03]} Bxa5 {[%emt 0:00:00]} 27. axb3 {[%emt 0:01:00]} axb3 {[%emt 0:00:00]} 28. Rxc5 {[%emt 0:01:31]} dxc5 {[%emt 0:00:00]} 29. Nxe5 {[%emt 0:00:16]} Bc7 {[%emt 0:00:00]} 30. Nc4 {[%emt 0:01:17]} Bb5 {[%emt 0:00:00]} 31. Nba3 {[%emt 0:02:08]} Ba6 {[%emt 0:00:00]} 32. Bd1 {[%emt 0:04:52]} Nd7 {[%emt 0:00:00]} 33. d6 {[%emt 0:02:13]} Bd8 {[%emt 0:00:00]} 34. Bxb3 {[%emt 0:01:42]} Rab8 {[%emt 0:00:00]} 35. Ba2 {[%emt 0:01:27]} Kg7 {[%emt 0:00:00]} 36. e5 {[%emt 0:01:23]} Bxc4 {[%emt 0:00:00]} 37. Nxc4 {[%emt 0:00:47]} Nxe5 {[%emt 0:00:00]} 38. Nxe5 {[%emt 0:00:33]} Rxb2+ {[%emt 0:00:00]} 39. Kg3 {[%emt 0:00:09]} Rxa2 {[%emt 0:12:00]} 40. d7 {[%emt 0:00:00]} Rc7 {[%emt 0:00:00]} 41. Bxc5 {[%emt 0:08:10]} Rd2 {[%emt 0:00:00]} 42. f4 {[%emt 0:13:09]} Rd5 {[%emt 0:00:11]} 43. Be3 {[%emt 0:01:02]} Rxc1 {[%emt 0:00:05]} 44. Bxc1 {[%emt 0:00:01]} Bf6 {[%emt 0:00:57]} 45. Nf3 {[%emt 0:03:43]} Rxd7 {[%emt 0:00:33]} 46. f5 {[%emt 0:00:57]} gxf5 {[%emt 0:00:41]} 47. g5 {[%emt 0:02:25]} Bc3 {[%emt 0:01:51]} 48. Kf4 {[%emt 0:00:33]} Rd1 {[%emt 0:00:49]} 49. Be3 {[%emt 0:00:37]} Rf1 {[%emt 0:00:24]} 50. Kg3 {[%emt 0:00:47]} Kf7 {[%emt 0:01:06]} 51. Kg2 {[%emt 0:01:02]} Rb1 {[%emt 0:00:18]} 52. Nh4 {[%emt 0:00:06]} Ke6 {[%emt 0:00:22]} 53. Kf3 {[%emt 0:01:07]} Be5 {[%emt 0:00:50]} 54. Ng2 {[%emt 0:01:43]} Rb3 {[%emt 0:00:25]} 55. Ke2 {[%emt 0:00:33]} Kd5 {[%emt 0:00:21]} 56. Kf3 {[%emt 0:00:18]} Ra3 {[%emt 0:00:18]} 0-1

[Event "4th Batumi Cup 2018"]
[Site "Batumi"]
[Date "2018.07.03"]
[Round "1"]
[White "Al Hosani, Omran"]
[Black "Pogosyan, Stefan"]
[Result "1-0"]
[ECO "A09"]
[WhiteElo "2089"]
[BlackElo "2356"]
[Annotator "NA"]
[PlyCount "99"]
[EventDate "2018.07.03"]
[EventType "swiss"]
[EventCountry "GEO"]
[SourceTitle "playchess.com"]
[Source "ChessBase"]
[SourceQuality "1"]
[TimeControl "40/5400+30:1800+30"]

1. Nf3 {[%emt 0:00:00]} d5 {[%emt 0:00:00]} 2. c4 {[%emt 0:00:00]} d4 {[%emt 0:00:03]} 3. d3 {[%emt 0:00:16]} c5 {[%emt 0:00:20]} 4. g3 {[%emt 0:00:11]} Nc6 {[%emt 0:00:17]} 5. Bg2 {[%emt 0:00:07]} Nf6 {[%emt 0:00:18]} 6. O-O {[%emt 0:00:09]} e5 {[%emt 0:00:12]} 7. e3 {[%emt 0:00:44]} Bd6 {[%emt 0:01:50]} 8. exd4 {[%emt 0:00:09]} cxd4 {[%emt 0:00:14]} 9. a3 {[%emt 0:18:01]} a5 {[%emt 0:00:31]} 10. Bg5 {[%emt 0:00:41]} h6 {[%emt 0:05:13]} 11. Bxf6 {[%emt 0:00:05]} Qxf6 {[%emt 0:00:09]} 12. Nbd2 {[%emt 0:00:04]} Bf5 {[%emt 0:05:27]} 13. Qe2 {[%emt 0:01:13]} O-O {[%emt 0:00:39]} 14. Ne4 {[%emt 0:00:13]} Qe7 {[%emt 0:00:14]} 15. Nxd6 {[%emt 0:00:12]} Qxd6 {[%emt 0:00:07]} 16. Rfe1 {[%emt 0:05:47]} Rfe8 {[%emt 0:00:52]} 17. Nh4 {[%emt 0:00:33]} Bh7 {[%emt 0:03:05]} 18. Bd5 {[%emt 0:01:55]} Re7 {[%emt 0:02:21]} 19. Qf3 {[%emt 0:00:20]} Qd7 {[%emt 0:02:40]} 20. Be4 {[%emt 0:06:58]} g6 {[%emt 0:05:07]} 21. b4 {[%emt 0:14:42]} Rae8 {[%emt 0:07:08]} 22. bxa5 {[%emt 0:07:34]} Nxa5 {[%emt 0:02:17]} 23. Rab1 {[%emt 0:00:16]} Qd6 {[%emt 0:05:57]} 24. Bd5 {[%emt 0:11:22]} Kg7 {[%emt 0:02:37]} 25. Rb5 {[%emt 0:00:55]} Qxa3 {[%emt 0:03:16]} 26. Rxe5 {[%emt 0:03:05]} Nc6 {[%emt 0:05:51]} 27. Re4 {[%emt 0:13:18]} f6 {[%emt 0:17:49]} 28. Bxc6 {[%emt 0:03:00]} bxc6 {[%emt 0:00:19]} 29. Rb7 {[%emt 0:00:51]} Qc5 {[%emt 0:04:53]} 30. Re6 {[%emt 0:01:09]} f5 {[%emt 0:02:47]} 31. Rbxe7+ {[%emt 0:00:51]} Rxe7 {[%emt 0:00:10]} 32. Rxe7+ {[%emt 0:00:04]} Qxe7 {[%emt 0:00:09]} 33. Qxc6 {[%emt 0:00:04]} g5 {[%emt 0:02:32]} 34. Nf3 {[%emt 0:00:18]} f4 {[%emt 0:00:44]} 35. Qd5 {[%emt 0:00:44]} Qf6 {[%emt 0:05:58]} 36. Ne5 {[%emt 0:00:49]} fxg3 {[%emt 0:00:48]} 37. hxg3 {[%emt 0:00:12]} h5 {[%emt 0:01:55]} 38. Qxd4 {[%emt 0:01:04]} h4 {[%emt 0:00:07]} 39. c5 {[%emt 0:00:29]} hxg3 {[%emt 0:00:55]} 40. fxg3 {[%emt 0:00:00]} Bf5 {[%emt 0:00:00]} 41. c6 {[%emt 0:02:58]} Kh7 {[%emt 0:02:55]} 42. Qd5 {[%emt 0:01:31]} Kg7 {[%emt 0:02:44]} 43. d4 {[%emt 0:00:39]} Qe7 {[%emt 0:01:32]} 44. Qf3 {[%emt 0:03:19]} Be6 {[%emt 0:01:57]} 45. Qe4 {[%emt 0:04:07]} Bf7 {[%emt 0:00:54]} 46. Qf5 {[%emt 0:00:59]} Be8 {[%emt 0:00:44]} 47. Qc8 {[%emt 0:01:00]} Qa3 {[%emt 0:03:11]} 48. Kh2 {[%emt 0:03:19]} Qa2+ {[%emt 0:04:53]} 49. Kh3 {[%emt 0:00:31]} Kf8 {[%emt 0:00:09]} 50. Qf5+ {[%emt 0:00:26]} 1-0

[Event "4th Batumi Cup 2018"]
[Site "Batumi"]
[Date "2018.07.03"]
[Round "2"]
[White "Jumabayev, Rinat"]
[Black "Sibashvili, Giorgi"]
[Result "1-0"]
[ECO "A11"]
[WhiteElo "2594"]
[BlackElo "2408"]
[Annotator "ChessBase"]
[PlyCount "61"]
[EventDate "2018.07.03"]
[EventType "swiss"]
[EventCountry "GEO"]
[SourceTitle "playchess.com"]
[Source "ChessBase"]
[SourceQuality "1"]
[TimeControl "40/5400+30:1800+30"]

1. Nf3 {[%emt 0:18:18]} d5 {[%emt 0:00:00]} 2. g3 {[%emt 0:00:04]} c6 {[%emt 0:02:10]} 3. c4 {[%emt 0:00:07]} Bg4 {[%emt 0:03:54]} 4. Bg2 {[%emt 0:00:30]} e6 {[%emt 0:00:32]} 5. cxd5 {[%emt 0:02:51]} Bxf3 {[%emt 0:00:16]} 6. Bxf3 {[%emt 0:00:05]} cxd5 {[%emt 0:00:05]} 7. O-O {[%emt 0:00:30]} Nc6 {[%emt 0:00:41]} 8. d4 {[%emt 0:00:21]} Nf6 {[%emt 0:01:12]} 9. Nc3 {[%emt 0:00:09]} Be7 {[%emt 0:01:13]} 10. e3 {[%emt 0:00:05]} O-O {[%emt 0:01:05]} 11. Qe2 {[%emt 0:00:12]} Rc8 {[%emt 0:03:27]} 12. Bd2 {[%emt 0:00:10]} a6 {[%emt 0:04:39]} 13. Rfc1 {[%emt 0:00:07]} b5 {[%emt 0:02:22]} 14. Be1 {[%emt 0:00:22]} Qb6 {[%emt 0:06:23]} 15. Qd1 {[%emt 0:06:45]} Na5 {[%emt 0:10:31]} 16. Ne2 {[%emt 0:01:01]} Nc4 {[%emt 0:09:52]} 17. Rc2 {[%emt 0:00:06]} b4 {[%emt 0:09:17]} 18. Nc1 {[%emt 0:02:46]} a5 {[%emt 0:09:52]} 19. Nd3 {[%emt 0:00:06]} Ne4 {[%emt 0:09:23]} 20. Rac1 {[%emt 0:01:07]} Ned6 {[%emt 0:05:53]} 21. Nc5 {[%emt 0:01:44]} Qa7 {[%emt 0:01:35]} 22. Bg4 {[%emt 0:00:36]} Nb6 {[%emt 0:02:04]} 23. Qd3 {[%emt 0:06:11]} g6 {[%emt 0:02:27]} 24. a3 {[%emt 0:00:59]} bxa3 {[%emt 0:01:21]} 25. Qxa3 {[%emt 0:00:18]} Ndc4 {[%emt 0:04:03]} 26. Qa2 {[%emt 0:00:16]} Bxc5 {[%emt 0:01:00]} 27. dxc5 {[%emt 0:00:02]} Nd7 {[%emt 0:00:13]} 28. Be2 {[%emt 0:03:07]} Nxc5 {[%emt 0:07:51]} 29. Bxc4 {[%emt 0:00:36]} dxc4 {[%emt 0:00:06]} 30. Rxc4 {[%emt 0:00:06]} Rc6 {[%emt 0:01:33]} 31. Qxa5 {[%emt 0:00:46]} 1-0

[Event "4th Batumi Cup 2018"]
[Site "Batumi"]
[Date "2018.07.03"]
[Round "2"]
[White "Pantsulaia, Levan"]
[Black "Oboladze, Luka"]
[Result "1-0"]
[ECO "A11"]
[WhiteElo "2575"]
[BlackElo "2378"]
[Annotator "ChessBase"]
[PlyCount "87"]
[EventDate "2018.07.03"]
[EventType "swiss"]
[EventCountry "GEO"]
[SourceTitle "playchess.com"]
[Source "ChessBase"]
[SourceQuality "1"]
[TimeControl "40/5400+30:1800+30"]

1. Nf3 {[%emt 0:02:30]} d5 {[%emt 0:00:00]} 2. g3 {[%emt 0:00:10]} c6 {[%emt 0:00:00]} 3. Bg2 {[%emt 0:00:54]} Bf5 {[%emt 0:00:00]} 4. O-O {[%emt 0:00:22]} Nf6 {[%emt 0:00:18]} 5. c4 {[%emt 0:00:27]} e6 {[%emt 0:00:19]} 6. d3 {[%emt 0:00:24]} h6 {[%emt 0:00:18]} 7. Nc3 {[%emt 0:01:00]} Be7 {[%emt 0:01:02]} 8. cxd5 {[%emt 0:01:14]} exd5 {[%emt 0:00:54]} 9. Nd4 {[%emt 0:01:17]} Bh7 {[%emt 0:03:52]} 10. e4 {[%emt 0:04:07]} dxe4 {[%emt 0:03:23]} 11. dxe4 {[%emt 0:00:07]} Nbd7 {[%emt 0:01:13]} 12. Re1 {[%emt 0:08:16]} Ne5 {[%emt 0:16:43]} 13. Bf4 {[%emt 0:05:22]} Nfd7 {[%emt 0:13:14]} 14. Qe2 {[%emt 0:01:13]} O-O {[%emt 0:02:45]} 15. Rad1 {[%emt 0:00:30]} Qc7 {[%emt 0:23:38]} 16. Be3 {[%emt 0:06:27]} Nb6 {[%emt 0:03:50]} 17. f4 {[%emt 0:00:30]} Nec4 {[%emt 0:00:09]} 18. Bf2 {[%emt 0:00:08]} Rfe8 {[%emt 0:04:18]} 19. e5 {[%emt 0:07:56]} Rad8 {[%emt 0:03:45]} 20. Be4 {[%emt 0:02:31]} Bxe4 {[%emt 0:20:19]} 21. Nxe4 {[%emt 0:00:24]} Bb4 {[%emt 0:03:23]} 22. Rf1 {[%emt 0:06:15]} Nxe5 {[%emt 0:00:56]} 23. fxe5 {[%emt 0:00:18]} Qxe5 {[%emt 0:00:17]} 24. Nf3 {[%emt 0:00:58]} Qe6 {[%emt 0:00:18]} 25. Rxd8 {[%emt 0:00:19]} Rxd8 {[%emt 0:00:04]} 26. a3 {[%emt 0:00:56]} Bf8 {[%emt 0:00:53]} 27. Nd4 {[%emt 0:01:44]} Qg6 {[%emt 0:02:28]} 28. Nc3 {[%emt 0:05:11]} Nd5 {[%emt 0:04:50]} 29. Nxd5 {[%emt 0:00:32]} Rxd5 {[%emt 0:00:04]} 30. Qe8 {[%emt 0:00:47]} Qd6 {[%emt 0:01:45]} 31. Be3 {[%emt 0:00:44]} Qe7 {[%emt 0:01:46]} 32. Qxe7 {[%emt 0:00:08]} Bxe7 {[%emt 0:00:01]} 33. Nf5 {[%emt 0:02:10]} Bc5 {[%emt 0:06:01]} 34. Bxc5 {[%emt 0:00:13]} Rxc5 {[%emt 0:00:04]} 35. Nd6 {[%emt 0:00:49]} b5 {[%emt 0:02:27]} 36. Nxf7 {[%emt 0:06:42]} Rc2 {[%emt 0:00:11]} 37. Ne5 {[%emt 0:00:42]} c5 {[%emt 0:02:49]} 38. Rf2 {[%emt 0:00:19]} Rc1+ {[%emt 0:00:03]} 39. Kg2 {[%emt 0:00:08]} c4 {[%emt 0:00:13]} 40. h4 {[%emt 0:00:00]} h5 {[%emt 0:02:57]} 41. Nc6 {[%emt 0:06:11]} a6 {[%emt 0:01:16]} 42. Nb4 {[%emt 0:00:12]} a5 {[%emt 0:00:26]} 43. Nc6 {[%emt 0:00:40]} c3 {[%emt 0:00:27]} 44. Nxa5 {[%emt 0:00:18]} 1-0

[Event "4th Batumi Cup 2018"]
[Site "Batumi"]
[Date "2018.07.03"]
[Round "2"]
[White "Sanikidze, Tornike"]
[Black "Suleymanli, Aydin"]
[Result "1/2-1/2"]
[ECO "A61"]
[WhiteElo "2512"]
[BlackElo "2266"]
[Annotator "ChessBase"]
[PlyCount "66"]
[EventDate "2018.07.03"]
[EventType "swiss"]
[EventCountry "GEO"]
[SourceTitle "playchess.com"]
[Source "ChessBase"]
[SourceQuality "1"]
[TimeControl "40/5400+30:1800+30"]

1. d4 {[%emt 0:04:13]} Nf6 {[%emt 0:00:00]} 2. Nf3 {[%emt 0:27:37]} c5 {[%emt 0:00:00]} 3. d5 {[%emt 0:00:00]} e6 {[%emt 0:00:00]} 4. c4 {[%emt 0:00:00]} exd5 {[%emt 0:00:00]} 5. cxd5 {[%emt 0:00:00]} d6 {[%emt 0:00:00]} 6. Nc3 {[%emt 0:00:00]} g6 {[%emt 0:00:07]} 7. Bf4 {[%emt 0:00:00]} a6 {[%emt 0:00:05]} 8. a4 {[%emt 0:00:00]} Bg7 {[%emt 0:00:05]} 9. h3 {[%emt 0:00:00]} O-O {[%emt 0:00:17]} 10. e3 {[%emt 0:00:00]} Ne8 {[%emt 0:00:54]} 11. Be2 {[%emt 0:00:00]} Qe7 {[%emt 0:00:58]} 12. O-O {[%emt 0:00:00]} Nd7 {[%emt 0:00:04]} 13. Re1 {[%emt 0:00:00]} Rb8 {[%emt 0:06:20]} 14. Nd2 {[%emt 0:00:00]} Nc7 {[%emt 0:08:56]} 15. Qb3 {[%emt 0:00:00]} Ne5 {[%emt 0:27:53]} 16. Nc4 {[%emt 0:10:00]} Nxc4 {[%emt 0:02:01]} 17. Bxc4 {[%emt 0:00:10]} b6 {[%emt 0:00:44]} 18. e4 {[%emt 0:01:43]} Be5 {[%emt 0:04:30]} 19. Bxe5 {[%emt 0:03:36]} Qxe5 {[%emt 0:00:14]} 20. Bf1 {[%emt 0:00:21]} Bd7 {[%emt 0:01:37]} 21. Qd1 {[%emt 0:01:35]} Rfe8 {[%emt 0:12:00]} 22. Qd2 {[%emt 0:02:54]} g5 {[%emt 0:09:12]} 23. g3 {[%emt 0:49:21]} b5 {[%emt 0:25:33]} 24. axb5 {[%emt 0:03:38]} Nxb5 {[%emt 0:00:42]} 25. Rxa6 {[%emt 0:05:01]} Nd4 {[%emt 0:00:15]} 26. Re3 {[%emt 0:00:05]} Rb7 {[%emt 0:06:49]} 27. Bg2 {[%emt 0:05:43]} Reb8 {[%emt 0:00:08]} 28. Ra2 {[%emt 0:02:06]} Nb3 {[%emt 0:00:45]} 29. Qd1 {[%emt 0:28:07]} Nd4 {[%emt 0:00:40]} 30. Qb1 {[%emt 0:08:17]} h5 {[%emt 0:06:57]} 31. Qc1 {[%emt 0:03:44]} g4 {[%emt 0:01:11]} 32. h4 {[%emt 0:01:50]} Nb3 {[%emt 0:01:17]} 33. Qd1 {[%emt 0:03:11]} Nd4 {[%emt 0:00:05]} 1/2-1/2

[Event "4th Batumi Cup 2018"]
[Site "Batumi"]
[Date "2018.07.03"]
[Round "2"]
[White "Quparadze, Giga"]
[Black "Garayev, Kanan"]
[Result "1-0"]
[ECO "C07"]
[WhiteElo "2503"]
[BlackElo "2300"]
[Annotator "ChessBase"]
[PlyCount "77"]
[EventDate "2018.07.03"]
[EventType "swiss"]
[EventCountry "GEO"]
[SourceTitle "playchess.com"]
[Source "ChessBase"]
[SourceQuality "1"]
[TimeControl "40/5400+30:1800+30"]

1. e4 {[%emt 0:01:51]} e6 {[%emt 0:00:00]} 2. d4 {[%emt 0:01:15]} d5 {[%emt 0:00:00]} 3. Nd2 {[%emt 0:00:06]} c5 {[%emt 0:00:12]} 4. Ngf3 {[%emt 0:00:08]} cxd4 {[%emt 0:00:09]} 5. Nxd4 {[%emt 0:00:06]} Nc6 {[%emt 0:00:08]} 6. Bb5 {[%emt 0:00:06]} Bd7 {[%emt 0:00:03]} 7. Nxc6 {[%emt 0:00:08]} Bxc6 {[%emt 0:00:03]} 8. Bxc6+ {[%emt 0:00:09]} bxc6 {[%emt 0:00:03]} 9. O-O {[%emt 0:02:36]} Nf6 {[%emt 0:00:05]} 10. Qe2 {[%emt 0:00:06]} Be7 {[%emt 0:02:08]} 11. c4 {[%emt 0:00:12]} O-O {[%emt 0:00:57]} 12. b3 {[%emt 0:00:30]} a5 {[%emt 0:09:52]} 13. a3 {[%emt 0:03:08]} dxe4 {[%emt 0:13:18]} 14. Nxe4 {[%emt 0:00:07]} Qd4 {[%emt 0:01:18]} 15. Nxf6+ {[%emt 0:00:05]} Bxf6 {[%emt 0:00:04]} 16. Rb1 {[%emt 0:00:03]} Rfd8 {[%emt 0:03:36]} 17. Be3 {[%emt 0:04:18]} Qd3 {[%emt 0:02:36]} 18. Qf3 {[%emt 0:00:32]} a4 {[%emt 0:03:48]} 19. Rfd1 {[%emt 0:02:02]} Qc2 {[%emt 0:04:37]} 20. Rdc1 {[%emt 0:00:05]} Qa2 {[%emt 0:04:42]} 21. bxa4 {[%emt 0:00:07]} Qxa3 {[%emt 0:15:04]} 22. Qxc6 {[%emt 0:00:27]} Rdc8 {[%emt 0:01:47]} 23. Qb7 {[%emt 0:01:55]} Qxa4 {[%emt 0:01:02]} 24. c5 {[%emt 0:00:05]} Qc6 {[%emt 0:02:54]} 25. g3 {[%emt 0:00:08]} g6 {[%emt 0:14:09]} 26. Rd1 {[%emt 0:00:25]} Qxb7 {[%emt 0:01:48]} 27. Rxb7 {[%emt 0:00:06]} Ra1 {[%emt 0:00:13]} 28. Rxa1 {[%emt 0:00:07]} Bxa1 {[%emt 0:00:02]} 29. Kf1 {[%emt 0:00:08]} Bg7 {[%emt 0:07:02]} 30. Ke2 {[%emt 0:00:53]} Bf8 {[%emt 0:00:10]} 31. Rb5 {[%emt 0:00:07]} Be7 {[%emt 0:00:35]} 32. Kd3 {[%emt 0:00:07]} Kf8 {[%emt 0:00:01]} 33. Kc4 {[%emt 0:00:09]} Ke8 {[%emt 0:00:01]} 34. Rb7 {[%emt 0:00:11]} h5 {[%emt 0:02:30]} 35. Kb5 {[%emt 0:00:31]} h4 {[%emt 0:00:22]} 36. c6 {[%emt 0:00:12]} h3 {[%emt 0:00:22]} 37. Bc5 {[%emt 0:00:18]} Bf6 {[%emt 0:01:38]} 38. Bd6 {[%emt 0:00:06]} g5 {[%emt 0:02:14]} 39. g4 {[%emt 0:00:28]} 1-0

[Event "4th Batumi Cup 2018"]
[Site "Batumi"]
[Date "2018.07.03"]
[Round "2"]
[White "Tutisani, Noe"]
[Black "Tereladze, Sopiko"]
[Result "1-0"]
[ECO "D02"]
[WhiteElo "2469"]
[BlackElo "2169"]
[Annotator "ChessBase"]
[PlyCount "57"]
[EventDate "2018.07.03"]
[EventType "swiss"]
[EventCountry "GEO"]
[SourceTitle "playchess.com"]
[Source "ChessBase"]
[SourceQuality "1"]
[TimeControl "40/5400+30:1800+30"]

1. Nf3 {[%emt 0:00:00]} Nf6 {[%emt 0:02:09]} 2. g3 {[%emt 0:00:00]} d5 {[%emt 0:00:14]} 3. Bg2 {[%emt 0:00:00]} c5 {[%emt 0:00:15]} 4. O-O {[%emt 0:00:00]} Nc6 {[%emt 0:00:27]} 5. d4 {[%emt 0:00:00]} cxd4 {[%emt 0:00:42]} 6. Nxd4 {[%emt 0:00:00]} Bd7 {[%emt 0:00:09]} 7. c4 {[%emt 0:00:03]} e5 {[%emt 0:02:34]} 8. Nxc6 {[%emt 0:00:41]} Bxc6 {[%emt 0:00:19]} 9. cxd5 {[%emt 0:00:14]} Bxd5 {[%emt 0:07:10]} 10. Qa4+ {[%emt 0:00:17]} Qd7 {[%emt 0:01:14]} 11. Qxd7+ {[%emt 0:00:08]} Kxd7 {[%emt 0:00:06]} 12. Rd1 {[%emt 0:00:01]} Ke6 {[%emt 0:05:57]} 13. Bh3+ {[%emt 0:00:05]} Ke7 {[%emt 0:00:21]} 14. Nc3 {[%emt 0:00:13]} Bc6 {[%emt 0:06:44]} 15. a4 {[%emt 0:01:13]} Ke8 {[%emt 0:04:45]} 16. Be3 {[%emt 0:00:29]} a6 {[%emt 0:06:07]} 17. Nb5 {[%emt 0:00:12]} Bb4 {[%emt 0:07:27]} 18. Nc7+ {[%emt 0:01:22]} Ke7 {[%emt 0:00:01]} 19. Nxa8 {[%emt 0:00:06]} Rxa8 {[%emt 0:00:05]} 20. Bg2 {[%emt 0:00:02]} Nd7 {[%emt 0:07:34]} 21. Rdc1 {[%emt 0:02:20]} Bxg2 {[%emt 0:08:47]} 22. Kxg2 {[%emt 0:00:17]} Bd6 {[%emt 0:02:23]} 23. a5 {[%emt 0:00:20]} f5 {[%emt 0:01:19]} 24. Rc4 {[%emt 0:00:16]} Rf8 {[%emt 0:01:39]} 25. Rd1 {[%emt 0:00:24]} h6 {[%emt 0:00:28]} 26. Bd2 {[%emt 0:00:11]} Rf6 {[%emt 0:04:44]} 27. Bb4 {[%emt 0:02:19]} Bxb4 {[%emt 0:02:58]} 28. Rxb4 {[%emt 0:00:19]} Nc5 {[%emt 0:00:38]} 29. Rd5 {[%emt 1:32:58]} 1-0